[Event "*** Titled Tuesday Blitz"]
[Site "Chess.com"]
[Date "2019.11.05"]
[Round "8"]
[White "1995Tiger"]
[Black "gena217"]
[Result "0-1"]
[WhiteElo "2159"]
[BlackElo "2922"]
[TimeControl "180+2"]
[EndTime "14:54:39 PST"]
[Termination "gena217 won by resignation"]

1. d4 {[%clk 0:03:01.9]} 1... f5 {[%clk 0:02:48.3]} 2. Nf3 {[%clk 0:03:01.5]}
2... Nf6 {[%clk 0:02:48.3]} 3. g3 {[%clk 0:03:02.8]} 3... g6 {[%clk 0:02:47.5]}
4. Bg2 {[%clk 0:03:04.2]} 4... Bg7 {[%clk 0:02:48.5]} 5. O-O {[%clk 0:03:05.9]}
5... O-O {[%clk 0:02:47.6]} 6. c4 {[%clk 0:03:07]} 6... d6 {[%clk 0:02:46.9]} 7.
Nc3 {[%clk 0:03:07.8]} 7... h6 {[%clk 0:02:47.3]} 8. Re1 {[%clk 0:03:06.2]} 8...
g5 {[%clk 0:02:48]} 9. e4 {[%clk 0:03:06.9]} 9... fxe4 {[%clk 0:02:48.8]} 10.
Nxe4 {[%clk 0:03:07.9]} 10... Nxe4 {[%clk 0:02:50.7]} 11. Rxe4 {[%clk
0:03:08.8]} 11... Bf5 {[%clk 0:02:47.6]} 12. Re1 {[%clk 0:03:06.3]} 12... Nc6
{[%clk 0:02:42.3]} 13. Be3 {[%clk 0:02:59.4]} 13... Qd7 {[%clk 0:02:40.8]} 14.
d5 {[%clk 0:02:51.3]} 14... Nb4 {[%clk 0:02:37.1]} 15. Nd4 {[%clk 0:02:34]}
15... Bxd4 {[%clk 0:02:19.3]} 16. Bxd4 {[%clk 0:02:33.5]} 16... Nc2 {[%clk
0:02:20]} 17. Bc3 {[%clk 0:02:30.1]} 17... Nxa1 {[%clk 0:01:56.3]} 18. Re6
{[%clk 0:02:09.1]} 18... Bxe6 {[%clk 0:01:22.4]} 19. dxe6 {[%clk 0:02:09.8]}
19... Qe8 {[%clk 0:01:23.5]} 20. Be4 {[%clk 0:01:58]} 20... c6 {[%clk
0:01:09.4]} 21. Qxa1 {[%clk 0:01:32]} 21... Rf6 {[%clk 0:01:07.9]} 22. Bxf6
{[%clk 0:01:16.5]} 22... exf6 {[%clk 0:01:09.8]} 23. Bf5 {[%clk 0:01:16.5]}
23... d5 {[%clk 0:01:01.4]} 24. cxd5 {[%clk 0:01:11.5]} 24... Rd8 {[%clk
0:01:01.6]} 25. dxc6 {[%clk 0:01:02.4]} 25... Qxc6 {[%clk 0:01:03.5]} 26. Qe1
{[%clk 0:00:50.7]} 26... Rd5 {[%clk 0:00:51.5]} 27. Bg6 {[%clk 0:00:31.6]} 27...
Re5 {[%clk 0:00:47.5]} 28. Bf7+ {[%clk 0:00:32.2]} 28... Kg7 {[%clk 0:00:38.6]}
29. Qd1 {[%clk 0:00:24.5]} 29... Qd5 {[%clk 0:00:28.4]} 30. Qb1 {[%clk
0:00:17.5]} 30... Qe4 {[%clk 0:00:23.5]} 31. Qxe4 {[%clk 0:00:15.4]} 31... Rxe4
{[%clk 0:00:25.4]} 32. Kf1 {[%clk 0:00:17]} 32... f5 {[%clk 0:00:22.6]} 33. f3
{[%clk 0:00:15.7]} 33... Re3 {[%clk 0:00:21.7]} 34. Kf2 {[%clk 0:00:16.8]} 34...
f4 {[%clk 0:00:23.1]} 35. h4 {[%clk 0:00:13.1]} 35... Kf6 {[%clk 0:00:22.1]} 36.
hxg5+ {[%clk 0:00:14]} 36... hxg5 {[%clk 0:00:24]} 37. gxf4 {[%clk 0:00:15.1]}
37... gxf4 {[%clk 0:00:25.9]} 38. Bg8 {[%clk 0:00:14.5]} 38... Ke7 {[%clk
0:00:26]} 39. Bf7 {[%clk 0:00:15.2]} 39... Kd6 {[%clk 0:00:27.2]} 40. Bg8 {[%clk
0:00:16.2]} 40... Kc5 {[%clk 0:00:28.5]} 41. a3 {[%clk 0:00:15.3]} 41... Kd6
{[%clk 0:00:27]} 42. Kg2 {[%clk 0:00:07.3]} 42... Re2+ {[%clk 0:00:27.2]} 43.
Kh3 {[%clk 0:00:07.5]} 43... Rxb2 {[%clk 0:00:28.5]} 44. Kg4 {[%clk 0:00:08.8]}
44... Rg2+ {[%clk 0:00:27.1]} 0-1

[Event "*** Titled Tuesday Blitz"]
[Site "Chess.com"]
[Date "2019.11.05"]
[Round "8"]
[White "misha_chessone"]
[Black "Eloist"]
[Result "0-1"]
[WhiteElo "2373"]
[BlackElo "2307"]
[TimeControl "180+2"]
[EndTime "14:54:52 PST"]
[Termination "Eloist won on time"]

1. d4 {[%clk 0:02:53.5]} 1... e6 {[%clk 0:02:59.2]} 2. c4 {[%clk 0:02:54.3]}
2... Nf6 {[%clk 0:02:59.6]} 3. Nc3 {[%clk 0:02:55.2]} 3... Bb4 {[%clk
0:02:59.6]} 4. Qc2 {[%clk 0:02:56.2]} 4... c5 {[%clk 0:02:58.4]} 5. dxc5 {[%clk
0:02:56.7]} 5... O-O {[%clk 0:02:58.6]} 6. a3 {[%clk 0:02:56.9]} 6... Bxc5
{[%clk 0:02:58.9]} 7. Nf3 {[%clk 0:02:56.7]} 7... b6 {[%clk 0:02:57.4]} 8. Bg5
{[%clk 0:02:56.6]} 8... h6 {[%clk 0:02:57.3]} 9. Bh4 {[%clk 0:02:57.3]} 9... Bb7
{[%clk 0:02:58.1]} 10. e3 {[%clk 0:02:58.4]} 10... Be7 {[%clk 0:02:53.9]} 11.
Be2 {[%clk 0:02:59]} 11... d6 {[%clk 0:02:53.3]} 12. O-O {[%clk 0:02:59.7]}
12... Nbd7 {[%clk 0:02:53.7]} 13. Rfd1 {[%clk 0:02:58.3]} 13... a6 {[%clk
0:02:47.1]} 14. Rac1 {[%clk 0:02:52.7]} 14... Rc8 {[%clk 0:02:43.1]} 15. b4
{[%clk 0:02:52.8]} 15... Qc7 {[%clk 0:02:34.6]} 16. Qb3 {[%clk 0:02:46.7]} 16...
Rfe8 {[%clk 0:02:32.7]} 17. Bg3 {[%clk 0:02:46]} 17... Nh5 {[%clk 0:02:31.7]}
18. Rd2 {[%clk 0:02:26.3]} 18... Nxg3 {[%clk 0:02:31.8]} 19. hxg3 {[%clk
0:02:26.9]} 19... Nf6 {[%clk 0:02:30.2]} 20. Rcd1 {[%clk 0:02:25.4]} 20... d5
{[%clk 0:02:29.6]} 21. Rd4 {[%clk 0:02:04]} 21... e5 {[%clk 0:02:19.3]} 22. Nxd5
{[%clk 0:01:19.4]} 22... Nxd5 {[%clk 0:02:16.9]} 23. Rxd5 {[%clk 0:01:17.8]}
23... Bxd5 {[%clk 0:02:16.7]} 24. Rxd5 {[%clk 0:01:18.7]} 24... e4 {[%clk
0:02:06.2]} 25. Nd4 {[%clk 0:01:11.1]} 25... Bf6 {[%clk 0:02:05.5]} 26. Nf5
{[%clk 0:01:09.7]} 26... Rcd8 {[%clk 0:02:03.8]} 27. Rxd8 {[%clk 0:00:58.6]}
27... Rxd8 {[%clk 0:02:03.5]} 28. g4 {[%clk 0:00:34.5]} 28... g6 {[%clk
0:01:58.3]} 29. Nxh6+ {[%clk 0:00:32.7]} 29... Kg7 {[%clk 0:01:59.1]} 30. g5
{[%clk 0:00:31.4]} 30... Bxg5 {[%clk 0:01:59.3]} 31. Ng4 {[%clk 0:00:31]} 31...
f5 {[%clk 0:01:36.2]} 32. Qc3+ {[%clk 0:00:28.4]} 32... Kh7 {[%clk 0:01:30.4]}
33. Nh2 {[%clk 0:00:11.6]} 33... Qg7 {[%clk 0:01:24.3]} 34. Qb3 {[%clk
0:00:05.5]} 34... Qa1+ {[%clk 0:01:22.4]} 35. Nf1 {[%clk 0:00:06.4]} 35... Kg7
{[%clk 0:01:12.6]} 36. c5 {[%clk 0:00:06.4]} 36... bxc5 {[%clk 0:01:12.6]} 37.
bxc5 {[%clk 0:00:07.3]} 37... Qf6 {[%clk 0:01:02.2]} 38. Qb7+ {[%clk 0:00:05.7]}
38... Kh6 {[%clk 0:00:59.5]} 39. Qxa6 {[%clk 0:00:06.3]} 39... Qxa6 {[%clk
0:00:56.4]} 40. Bxa6 {[%clk 0:00:07.2]} 40... Ra8 {[%clk 0:00:57.2]} 41. Bb7
{[%clk 0:00:07.8]} 41... Rxa3 {[%clk 0:00:57.7]} 42. c6 {[%clk 0:00:09]} 42...
Bd8 {[%clk 0:00:55.6]} 43. g3 {[%clk 0:00:09.7]} 43... g5 {[%clk 0:00:54]} 44.
Kg2 {[%clk 0:00:09.9]} 44... Kg6 {[%clk 0:00:52.2]} 45. Bc8 {[%clk 0:00:09.7]}
45... Ra2 {[%clk 0:00:51.3]} 46. Kg1 {[%clk 0:00:04.7]} 46... g4 {[%clk
0:00:50.7]} 47. Kg2 {[%clk 0:00:04.4]} 47... Ba5 {[%clk 0:00:50.4]} 48. Bd7
{[%clk 0:00:04.9]} 48... Rc2 {[%clk 0:00:49.8]} 49. Nh2 {[%clk 0:00:03.4]} 49...
Be1 {[%clk 0:00:49.5]} 0-1

[Event "*** Titled Tuesday Blitz"]
[Site "Chess.com"]
[Date "2019.11.05"]
[Round "8"]
[White "Qvalda"]
[Black "WinningButNotReally"]
[Result "0-1"]
[WhiteElo "2531"]
[BlackElo "2445"]
[TimeControl "180+2"]
[EndTime "14:54:54 PST"]
[Termination "WinningButNotReally won on time"]

1. d4 {[%clk 0:03:01.9]} 1... Nf6 {[%clk 0:02:57.7]} 2. Nf3 {[%clk 0:03:02.4]}
2... g6 {[%clk 0:02:59]} 3. Bg5 {[%clk 0:03:03.4]} 3... Ne4 {[%clk 0:02:59.8]}
4. Bh4 {[%clk 0:03:03.1]} 4... d5 {[%clk 0:03:00.9]} 5. Nbd2 {[%clk 0:03:00.3]}
5... Bg7 {[%clk 0:03:01.4]} 6. e3 {[%clk 0:02:59.8]} 6... Nxd2 {[%clk
0:02:55.5]} 7. Qxd2 {[%clk 0:02:59.1]} 7... O-O {[%clk 0:02:56.5]} 8. Be2 {[%clk
0:02:53.7]} 8... h6 {[%clk 0:02:49.9]} 9. O-O {[%clk 0:02:52.9]} 9... c5 {[%clk
0:02:50.9]} 10. c3 {[%clk 0:02:52.6]} 10... Be6 {[%clk 0:02:44.9]} 11. dxc5
{[%clk 0:02:51.6]} 11... Nd7 {[%clk 0:02:38.6]} 12. b4 {[%clk 0:02:49.7]} 12...
g5 {[%clk 0:02:38.1]} 13. Bg3 {[%clk 0:02:50.4]} 13... a5 {[%clk 0:02:36.8]} 14.
a3 {[%clk 0:02:50.1]} 14... Nf6 {[%clk 0:02:00.3]} 15. Be5 {[%clk 0:02:34.1]}
15... g4 {[%clk 0:01:51.7]} 16. Nh4 {[%clk 0:02:20.4]} 16... Ne4 {[%clk
0:01:41]} 17. Qd4 {[%clk 0:02:21.4]} 17... f6 {[%clk 0:01:34.6]} 18. Bg3 {[%clk
0:02:18.4]} 18... axb4 {[%clk 0:01:08.1]} 19. axb4 {[%clk 0:02:11.9]} 19... Rxa1
{[%clk 0:01:08.5]} 20. Rxa1 {[%clk 0:02:12.6]} 20... Qd7 {[%clk 0:00:58.2]} 21.
c4 {[%clk 0:01:46]} 21... Nxg3 {[%clk 0:00:56.6]} 22. hxg3 {[%clk 0:01:33.7]}
22... f5 {[%clk 0:00:57.6]} 23. Qd1 {[%clk 0:01:32]} 23... Bxa1 {[%clk
0:00:58.4]} 24. Qxa1 {[%clk 0:01:33.9]} 24... dxc4 {[%clk 0:00:55.2]} 25. Ng6
{[%clk 0:01:33.2]} 25... Rf6 {[%clk 0:00:49.7]} 26. Ne5 {[%clk 0:01:24.9]} 26...
Qd2 {[%clk 0:00:40.3]} 27. Bxc4 {[%clk 0:01:19.2]} 27... Qxb4 {[%clk 0:00:40.8]}
28. Bxe6+ {[%clk 0:01:06.5]} 28... Rxe6 {[%clk 0:00:41.1]} 29. Nd3 {[%clk
0:00:58.3]} 29... Qb5 {[%clk 0:00:32.2]} 30. Nf4 {[%clk 0:00:55.1]} 30... Rf6
{[%clk 0:00:24.3]} 31. Qe5 {[%clk 0:00:46.5]} 31... Qd7 {[%clk 0:00:22.4]} 32.
Nd5 {[%clk 0:00:38.8]} 32... Rf7 {[%clk 0:00:23.1]} 33. Kh2 {[%clk 0:00:33.6]}
33... Kh7 {[%clk 0:00:23.5]} 34. Nf4 {[%clk 0:00:30.5]} 34... Rf6 {[%clk
0:00:20.7]} 35. Nh5 {[%clk 0:00:29.9]} 35... Rf7 {[%clk 0:00:21.6]} 36. Qc3
{[%clk 0:00:23.6]} 36... Qc6 {[%clk 0:00:21.1]} 37. Nf4 {[%clk 0:00:22.8]} 37...
h5 {[%clk 0:00:22.1]} 38. Qc4 {[%clk 0:00:10.6]} 38... Rg7 {[%clk 0:00:21.6]}
39. Qd3 {[%clk 0:00:09]} 39... Qxc5 {[%clk 0:00:21.7]} 40. Nxh5 {[%clk
0:00:08.1]} 40... Rf7 {[%clk 0:00:21.9]} 41. Nf4 {[%clk 0:00:07.1]} 41... Qc6
{[%clk 0:00:22.5]} 42. Qd8 {[%clk 0:00:06]} 42... Qh6+ {[%clk 0:00:22.5]} 43.
Kg1 {[%clk 0:00:07.2]} 43... Qd6 {[%clk 0:00:23.7]} 44. Qe8 {[%clk 0:00:04.8]}
44... Rf6 {[%clk 0:00:24.9]} 45. Qh5+ {[%clk 0:00:04.2]} 45... Kg7 {[%clk
0:00:25.6]} 46. Qg5+ {[%clk 0:00:05.2]} 46... Kf8 {[%clk 0:00:26.7]} 47. Qh4
{[%clk 0:00:02.1]} 47... Rh6 {[%clk 0:00:26.1]} 48. Nh5 {[%clk 0:00:02.8]} 48...
Qg6 {[%clk 0:00:26]} 0-1

[Event "*** Titled Tuesday Blitz"]
[Site "Chess.com"]
[Date "2019.11.05"]
[Round "8"]
[White "TST2014"]
[Black "Darhild"]
[Result "0-1"]
[WhiteElo "2527"]
[BlackElo "2692"]
[TimeControl "180+2"]
[EndTime "14:54:58 PST"]
[Termination "Darhild won by resignation"]

1. d4 {[%clk 0:03:01.9]} 1... Nf6 {[%clk 0:03:00.7]} 2. c4 {[%clk 0:03:02.4]}
2... g6 {[%clk 0:03:02.2]} 3. Nc3 {[%clk 0:03:02.8]} 3... d5 {[%clk 0:03:03.8]}
4. Nf3 {[%clk 0:03:03.3]} 4... Bg7 {[%clk 0:03:04.5]} 5. Bg5 {[%clk 0:03:02.9]}
5... Ne4 {[%clk 0:03:05]} 6. Bh4 {[%clk 0:03:03.1]} 6... Nxc3 {[%clk 0:03:01.2]}
7. bxc3 {[%clk 0:03:05]} 7... dxc4 {[%clk 0:03:02.7]} 8. Qa4+ {[%clk 0:03:05.4]}
8... Qd7 {[%clk 0:02:55.6]} 9. Qxc4 {[%clk 0:03:03.7]} 9... b6 {[%clk
0:02:57.1]} 10. e3 {[%clk 0:03:04.5]} 10... Ba6 {[%clk 0:02:57.9]} 11. Qb3
{[%clk 0:03:05.6]} 11... Bxf1 {[%clk 0:02:59]} 12. Kxf1 {[%clk 0:03:07.5]} 12...
O-O {[%clk 0:02:55.1]} 13. Ke2 {[%clk 0:03:06.2]} 13... Nc6 {[%clk 0:02:50.5]}
14. a4 {[%clk 0:02:51.2]} 14... e5 {[%clk 0:02:43.3]} 15. h3 {[%clk 0:02:39.1]}
15... exd4 {[%clk 0:02:31.7]} 16. cxd4 {[%clk 0:02:38.9]} 16... Na5 {[%clk
0:02:23.5]} 17. Qb5 {[%clk 0:02:38.6]} 17... c6 {[%clk 0:02:20.7]} 18. Ne5
{[%clk 0:02:31.3]} 18... Qe6 {[%clk 0:02:00.3]} 19. Qb2 {[%clk 0:02:05.2]} 19...
c5 {[%clk 0:01:35.1]} 20. Bg3 {[%clk 0:01:58.6]} 20... cxd4 {[%clk 0:01:30.9]}
21. Qa2 {[%clk 0:01:22.2]} 21... Qf5 {[%clk 0:01:07.2]} 22. exd4 {[%clk
0:01:14.7]} 22... Qe4+ {[%clk 0:01:05.1]} 23. Kf1 {[%clk 0:01:12.1]} 23... Qxd4
{[%clk 0:01:06.1]} 24. Re1 {[%clk 0:01:12.3]} 24... Rae8 {[%clk 0:00:58.5]} 25.
Nf3 {[%clk 0:00:43.4]} 25... Rxe1+ {[%clk 0:00:58.8]} 26. Nxe1 {[%clk
0:00:42.7]} 26... Re8 {[%clk 0:00:54]} 27. Qb1 {[%clk 0:00:33.9]} 27... Nc4
{[%clk 0:00:38.9]} 28. Kg1 {[%clk 0:00:32.6]} 28... Qb2 {[%clk 0:00:19.4]} 29.
Qd1 {[%clk 0:00:27.7]} 29... Qd4 {[%clk 0:00:11.4]} 30. Qb1 {[%clk 0:00:24.4]}
30... Nd2 {[%clk 0:00:11.4]} 31. Qd1 {[%clk 0:00:24.1]} 31... Ne4 {[%clk
0:00:05.3]} 32. Qxd4 {[%clk 0:00:20.6]} 32... Bxd4 {[%clk 0:00:07.2]} 33. Bh4
{[%clk 0:00:14.4]} 33... g5 {[%clk 0:00:07.5]} 34. Nf3 {[%clk 0:00:15.6]} 34...
Bc5 {[%clk 0:00:08.5]} 35. Bxg5 {[%clk 0:00:15.3]} 35... Bxf2+ {[%clk
0:00:08.1]} 36. Kh2 {[%clk 0:00:16.3]} 36... Bg3+ {[%clk 0:00:09.4]} 37. Kg1
{[%clk 0:00:17.3]} 37... Nxg5 {[%clk 0:00:10.8]} 38. h4 {[%clk 0:00:11.2]} 38...
Nxf3+ {[%clk 0:00:11]} 39. gxf3 {[%clk 0:00:13.1]} 39... Re1+ {[%clk 0:00:12.7]}
40. Kg2 {[%clk 0:00:15]} 40... Rxh1 {[%clk 0:00:14.3]} 41. Kxh1 {[%clk
0:00:16.5]} 41... Bxh4 {[%clk 0:00:15.4]} 42. Kg2 {[%clk 0:00:18.4]} 42... Be7
{[%clk 0:00:17.3]} 43. Kh3 {[%clk 0:00:20.3]} 43... Kg7 {[%clk 0:00:19.2]} 44.
Kg4 {[%clk 0:00:22.1]} 44... Kg6 {[%clk 0:00:20.9]} 45. Kf4 {[%clk 0:00:24]}
45... f5 {[%clk 0:00:22.8]} 46. Ke5 {[%clk 0:00:22.9]} 46... h5 {[%clk
0:00:24.7]} 47. Ke6 {[%clk 0:00:24.3]} 47... Bf6 {[%clk 0:00:26.1]} 48. Kd7
{[%clk 0:00:25.5]} 48... h4 {[%clk 0:00:27.6]} 49. Kc6 {[%clk 0:00:27.4]} 49...
Bd4 {[%clk 0:00:28.3]} 50. Kb7 {[%clk 0:00:29.3]} 50... a5 {[%clk 0:00:29.4]}
51. Ka7 {[%clk 0:00:31.2]} 51... Bc5 {[%clk 0:00:31.2]} 52. Ka6 {[%clk
0:00:32.6]} 52... h3 {[%clk 0:00:32.8]} 53. f4 {[%clk 0:00:32.7]} 53... h2
{[%clk 0:00:34.2]} 54. Kb5 {[%clk 0:00:34.2]} 54... h1=Q {[%clk 0:00:35.1]} 55.
Ka6 {[%clk 0:00:35.9]} 55... Qc6 {[%clk 0:00:34]} 56. Ka7 {[%clk 0:00:36.2]}
56... b5+ {[%clk 0:00:35.5]} 57. Kb8 {[%clk 0:00:37.2]} 0-1

[Event "*** Titled Tuesday Blitz"]
[Site "Chess.com"]
[Date "2019.11.05"]
[Round "8"]
[White "GM_dmitrij"]
[Black "VerdeNotte"]
[Result "0-1"]
[WhiteElo "2919"]
[BlackElo "2806"]
[TimeControl "180+2"]
[EndTime "14:55:07 PST"]
[Termination "VerdeNotte won by checkmate"]

1. e4 {[%clk 0:03:01.9]} 1... e5 {[%clk 0:02:56.3]} 2. Nf3 {[%clk 0:03:02.4]}
2... Nc6 {[%clk 0:02:57.6]} 3. Bb5 {[%clk 0:03:03.3]} 3... a6 {[%clk 0:02:58.7]}
4. Ba4 {[%clk 0:03:03.1]} 4... d6 {[%clk 0:03:00.2]} 5. O-O {[%clk 0:03:00.3]}
5... Bd7 {[%clk 0:03:01.2]} 6. c3 {[%clk 0:03:00.1]} 6... g6 {[%clk 0:03:02.1]}
7. d4 {[%clk 0:03:00.6]} 7... Bg7 {[%clk 0:03:03.7]} 8. Re1 {[%clk 0:02:59.6]}
8... Nf6 {[%clk 0:03:04.6]} 9. h3 {[%clk 0:02:56.1]} 9... O-O {[%clk 0:03:05.3]}
10. Nbd2 {[%clk 0:02:53.9]} 10... exd4 {[%clk 0:03:00.6]} 11. cxd4 {[%clk
0:02:52.8]} 11... Nb4 {[%clk 0:03:02]} 12. Bxd7 {[%clk 0:02:39.4]} 12... Nxd7
{[%clk 0:02:59]} 13. Qb3 {[%clk 0:02:31.2]} 13... c5 {[%clk 0:02:54.8]} 14. d5
{[%clk 0:02:24]} 14... a5 {[%clk 0:02:50.4]} 15. Nc4 {[%clk 0:02:03.7]} 15... b5
{[%clk 0:02:39.1]} 16. Nxd6 {[%clk 0:01:58.3]} 16... c4 {[%clk 0:02:32.7]} 17.
Qd1 {[%clk 0:01:58.8]} 17... Qb6 {[%clk 0:02:27.2]} 18. Bf4 {[%clk 0:01:34.5]}
18... Nd3 {[%clk 0:02:24.8]} 19. Bg3 {[%clk 0:01:32.2]} 19... Nxe1 {[%clk
0:02:06.6]} 20. Qxe1 {[%clk 0:01:28.9]} 20... Bxb2 {[%clk 0:02:07.1]} 21. Rb1
{[%clk 0:01:29.2]} 21... c3 {[%clk 0:02:04.4]} 22. Qe2 {[%clk 0:01:06.7]} 22...
Qc5 {[%clk 0:01:49.2]} 23. Rxb2 {[%clk 0:00:51.8]} 23... cxb2 {[%clk 0:01:51.1]}
24. Qxb2 {[%clk 0:00:53.1]} 24... b4 {[%clk 0:01:50.9]} 25. Bf4 {[%clk
0:00:51.6]} 25... Qc3 {[%clk 0:01:40.2]} 26. Qe2 {[%clk 0:00:49.5]} 26... a4
{[%clk 0:01:38.5]} 27. Qb5 {[%clk 0:00:29.5]} 27... b3 {[%clk 0:01:35.4]} 28.
axb3 {[%clk 0:00:29.2]} 28... a3 {[%clk 0:01:35.9]} 29. Qxd7 {[%clk 0:00:21.1]}
29... a2 {[%clk 0:01:36.6]} 30. Kh2 {[%clk 0:00:19.8]} 30... a1=Q {[%clk
0:01:37.4]} 31. e5 {[%clk 0:00:14.3]} 31... Rad8 {[%clk 0:01:15.8]} 32. Qe7
{[%clk 0:00:15.6]} 32... Rxd6 {[%clk 0:00:59.2]} 33. exd6 {[%clk 0:00:17.5]}
33... Qf6 {[%clk 0:00:58.9]} 34. Qe3 {[%clk 0:00:18.5]} 34... Qac3 {[%clk
0:00:56.3]} 35. Qe4 {[%clk 0:00:16.7]} 35... Qf5 {[%clk 0:00:57]} 36. Qa4 {[%clk
0:00:14.6]} 36... Qcf6 {[%clk 0:00:54.3]} 37. Bg3 {[%clk 0:00:15.2]} 37... Qxd5
{[%clk 0:00:54.7]} 38. h4 {[%clk 0:00:06.4]} 38... Rd8 {[%clk 0:00:50.1]} 39.
Ng5 {[%clk 0:00:07.7]} 39... h6 {[%clk 0:00:43.8]} 40. Ne4 {[%clk 0:00:08.5]}
40... Qfe6 {[%clk 0:00:43]} 41. f3 {[%clk 0:00:09]} 41... Qxb3 {[%clk
0:00:39.3]} 42. Qa5 {[%clk 0:00:08.9]} 42... Rf8 {[%clk 0:00:23.3]} 43. Be5
{[%clk 0:00:08.2]} 43... f6 {[%clk 0:00:22]} 44. Bg3 {[%clk 0:00:09.3]} 44...
Qbd5 {[%clk 0:00:21.8]} 45. Qc7 {[%clk 0:00:10.1]} 45... Qf7 {[%clk 0:00:20.9]}
46. Qc3 {[%clk 0:00:10.2]} 46... g5 {[%clk 0:00:20.7]} 47. Qc2 {[%clk
0:00:07.7]} 47... gxh4 {[%clk 0:00:21]} 48. Bf4 {[%clk 0:00:07.8]} 48... h3
{[%clk 0:00:20.2]} 49. g4 {[%clk 0:00:06.8]} 49... f5 {[%clk 0:00:21.1]} 50. Nc3
{[%clk 0:00:04.6]} 50... Qxf3 {[%clk 0:00:22]} 51. Ne2 {[%clk 0:00:03.1]} 51...
Qg2# {[%clk 0:00:23]} 0-1

[Event "*** Titled Tuesday Blitz"]
[Site "Chess.com"]
[Date "2019.11.05"]
[Round "8"]
[White "FearNoEvil12"]
[Black "Siemba"]
[Result "1-0"]
[WhiteElo "1978"]
[BlackElo "2200"]
[TimeControl "180+2"]
[EndTime "14:55:09 PST"]
[Termination "FearNoEvil12 won by resignation"]

1. e4 {[%clk 0:03:01.9]} 1... c5 {[%clk 0:02:58.5]} 2. Nc3 {[%clk 0:03:02]} 2...
e6 {[%clk 0:02:56.1]} 3. f4 {[%clk 0:03:02.9]} 3... d5 {[%clk 0:02:57.4]} 4. Nf3
{[%clk 0:03:02.1]} 4... dxe4 {[%clk 0:02:58.6]} 5. Nxe4 {[%clk 0:03:01.8]} 5...
Bd7 {[%clk 0:03:00.5]} 6. d3 {[%clk 0:03:01.5]} 6... Bc6 {[%clk 0:03:00.1]} 7.
Qe2 {[%clk 0:03:02]} 7... Nd7 {[%clk 0:03:00]} 8. g3 {[%clk 0:03:02.4]} 8...
Ngf6 {[%clk 0:03:01.2]} 9. Bg2 {[%clk 0:03:03.6]} 9... Be7 {[%clk 0:02:59.2]}
10. Ne5 {[%clk 0:03:03.5]} 10... Nxe5 {[%clk 0:02:56.2]} 11. fxe5 {[%clk
0:03:03.6]} 11... Nd5 {[%clk 0:02:57.7]} 12. O-O {[%clk 0:02:59.8]} 12... Qd7
{[%clk 0:02:53.9]} 13. Bd2 {[%clk 0:02:58.8]} 13... b6 {[%clk 0:02:43.7]} 14. a3
{[%clk 0:02:58]} 14... Rf8 {[%clk 0:02:42.5]} 15. c4 {[%clk 0:02:55.9]} 15...
Nc7 {[%clk 0:02:40.3]} 16. Be3 {[%clk 0:02:42.1]} 16... O-O-O {[%clk 0:02:39.6]}
17. Rad1 {[%clk 0:02:42.7]} 17... f5 {[%clk 0:02:36.8]} 18. exf6 {[%clk
0:02:41.6]} 18... Bxf6 {[%clk 0:02:33.5]} 19. Bf4 {[%clk 0:02:41.5]} 19... Bd4+
{[%clk 0:02:32.1]} 20. Kh1 {[%clk 0:02:41.3]} 20... e5 {[%clk 0:02:32.4]} 21.
Bg5 {[%clk 0:02:35.6]} 21... Rde8 {[%clk 0:02:30.5]} 22. Qh5 {[%clk 0:02:34.8]}
22... Kb7 {[%clk 0:02:27.5]} 23. Bh3 {[%clk 0:02:29]} 23... Bxe4+ {[%clk
0:02:18.8]} 24. dxe4 {[%clk 0:02:28.7]} 24... Qc6 {[%clk 0:02:20.7]} 25. Bg2
{[%clk 0:02:24.6]} 25... Ne6 {[%clk 0:02:21]} 26. Bc1 {[%clk 0:02:21.3]} 26...
h6 {[%clk 0:02:15.3]} 27. b4 {[%clk 0:02:15.2]} 27... a6 {[%clk 0:02:13.9]} 28.
Qe2 {[%clk 0:02:06.3]} 28... Ng5 {[%clk 0:02:08.7]} 29. Rf5 {[%clk 0:02:02]}
29... g6 {[%clk 0:02:03.1]} 30. Rff1 {[%clk 0:02:01.1]} 30... Ka7 {[%clk
0:01:54.9]} 31. Bxg5 {[%clk 0:01:58.1]} 31... hxg5 {[%clk 0:01:56.8]} 32. b5
{[%clk 0:01:51.6]} 32... axb5 {[%clk 0:01:54.5]} 33. cxb5 {[%clk 0:01:53]} 33...
Qe6 {[%clk 0:01:55.9]} 34. Qc2 {[%clk 0:01:49.7]} 34... Rh8 {[%clk 0:01:52.3]}
35. Qa4+ {[%clk 0:01:48]} 35... Kb8 {[%clk 0:01:53.7]} 36. Rxd4 {[%clk
0:01:42.3]} 36... cxd4 {[%clk 0:01:32.9]} 37. Rc1 {[%clk 0:01:34.5]} 37... Rc8
{[%clk 0:01:33.6]} 38. Rc6 {[%clk 0:01:34.9]} 38... Rxc6 {[%clk 0:01:33.1]} 39.
bxc6 {[%clk 0:01:36.3]} 39... Rc8 {[%clk 0:01:34.3]} 40. Bf1 {[%clk 0:01:24.6]}
40... Qxc6 {[%clk 0:01:33.5]} 41. Bb5 {[%clk 0:01:21.5]} 41... Qxe4+ {[%clk
0:01:34.3]} 42. Kg1 {[%clk 0:01:21.3]} 42... Rc1+ {[%clk 0:01:35.7]} 43. Bf1
{[%clk 0:01:17.8]} 43... Qe3+ {[%clk 0:01:35.1]} 44. Kg2 {[%clk 0:01:18.8]}
44... Qe4+ {[%clk 0:01:33.6]} 45. Kg1 {[%clk 0:01:18.8]} 45... Qc6 {[%clk
0:01:22.7]} 46. Qb4 {[%clk 0:01:14.8]} 46... d3 {[%clk 0:01:18.7]} 47. Qf8+
{[%clk 0:00:57.7]} 47... Qc8 {[%clk 0:01:19.4]} 48. Qf3 {[%clk 0:00:51]} 48...
Rxf1+ {[%clk 0:01:16.1]} 49. Kxf1 {[%clk 0:00:50.2]} 49... Qf5 {[%clk
0:01:17.2]} 50. Qxf5 {[%clk 0:00:45.1]} 50... gxf5 {[%clk 0:01:19.1]} 51. h4
{[%clk 0:00:45.1]} 51... gxh4 {[%clk 0:00:56.9]} 52. gxh4 {[%clk 0:00:45.6]}
52... f4 {[%clk 0:00:58.5]} 53. h5 {[%clk 0:00:45]} 53... f3 {[%clk 0:00:59.9]}
54. Ke1 {[%clk 0:00:38.8]} 54... e4 {[%clk 0:00:56.2]} 55. h6 {[%clk 0:00:39.3]}
55... e3 {[%clk 0:00:31]} 56. h7 {[%clk 0:00:39.7]} 56... f2+ {[%clk 0:00:24.4]}
57. Kf1 {[%clk 0:00:40.2]} 57... d2 {[%clk 0:00:20]} 58. h8=Q+ {[%clk
0:00:40.9]} 58... Kb7 {[%clk 0:00:20.7]} 59. Qd4 {[%clk 0:00:42.2]} 59... e2+
{[%clk 0:00:18.5]} 60. Kxe2 {[%clk 0:00:42.3]} 60... d1=Q+ {[%clk 0:00:20.4]}
61. Qxd1 {[%clk 0:00:41.5]} 61... f1=Q+ {[%clk 0:00:21.6]} 62. Qxf1 {[%clk
0:00:42.1]} 1-0